bitfinex-derivatives/quotes_SOLF0:USTF0_20250311
["timestamp","ask_amount","ask_price","bid_price","bid_amount"]
[1741698285366,8.1434,122.82,122.8,33.16]
[1741698285567,3.8594,122.85,122.8,33.16]
[1741698285767,0.05813875,122.82,122.8,33.2188728]
[1741698285968,0.05813875,122.82,122.8,0.0588728]
[1741698286156,8.20203875,122.82,122.8,0.0588728]
[1741698286359,0.05813875,122.82,122.8,0.0588728]
[1741698286967,8.20193875,122.82,122.8,0.0588728]
[1741698287269,0.05813875,122.82,122.8,0.0588728]
[1741698288469,8.1441,122.81,122.8,0.0588728]
[1741698288766,0.05813875,122.82,122.8,0.0588728]
[1741698289070,0.05813875,122.82,122.81,8.1441]
[1741698289265,0.05813875,122.82,122.8,0.0588728]
[1741698290165,8.20183875,122.82,122.8,0.0588728]
[1741698290668,0.05813875,122.82,122.8,0.0588728]
[1741698291365,8.1441,122.81,122.8,0.0588728]
[1741698297278,8.20183875,122.82,122.8,0.0588728]
[1741698297478,0.05813875,122.82,122.8,0.0588728]
[1741698297672,0.05813875,122.82,122.81,41.3041]
[1741698298068,0.05813875,122.82,122.81,33.16]
[1741698298674,0.05813875,122.82,122.81,41.3041]
[1741698300584,0.05813875,122.82,122.81,51.61852092]
[1741698302481,10.9200184,122.9,122.81,56.22884184]
[1741698302680,10.9200184,122.9,122.86,10.31442092]
[1741698302884,19.0585184,122.9,122.87,41.2998]
[1741698303079,10.9200184,122.9,122.87,33.16]
[1741698303582,10.97179815,122.9,122.87,41.35615542]
[1741698303781,10.97179815,122.9,122.87,33.21615542]
[1741698303984,19.11019815,122.9,122.87,41.35595542]
[1741698304183,10.97179815,122.9,122.87,41.35595542]
[1741698304383,0.05177975,122.9,122.87,41.35595542]
[1741698304585,8.19027975,122.9,122.87,41.35595542]
[1741698304980,0.05177975,122.9,122.89,8.1388]
[1741698306383,47.55632809,122.95,122.88,10.31442092]
[1741698306579,47.55632809,122.95,122.9,10.31442092]
[1741698306883,47.55632809,122.95,122.93,8.1358]
[1741698307083,3.8493,122.95,122.93,8.1358]
[1741698307285,11.9842,122.95,122.91,33.14]
[1741698307482,3.8493,122.95,122.91,33.14]
[1741698307685,0.0555732,122.94,122.92,0.05578969]
[1741698307887,0.0555732,122.94,122.93,8.1361]
[1741698308283,0.0555732,122.94,122.92,0.05578969]
[1741698308483,0.0555732,122.94,122.93,8.1361]
[1741698309086,0.0555732,122.94,122.92,10.37021061]
[1741698309390,0.0555732,122.94,122.92,0.05578969]
[1741698309684,0.0555732,122.94,122.93,8.1361]
[1741698309881,0.0555732,122.94,122.92,0.05578969]
[1741698310085,0.0555732,122.94,122.92,8.19258969]
[1741698310582,8.1361,122.93,122.92,0.05578969]
[1741698310788,10.36999412,122.94,122.86,10.31442092]
[1741698311086,10.31442092,122.92,122.86,33.14]
[1741698311284,8.139,122.89,122.86,33.14]
[1741698311686,8.1384,122.9,122.86,41.2807]
[1741698311889,8.1384,122.9,122.86,33.14]
[1741698312089,0.05494806,122.89,122.87,0.05728278]
[1741698312384,0.05494806,122.89,122.81,33.14]
[1741698312385,8.1421,122.84,122.81,33.14]
[1741698313177,10.31442092,122.86,122.78,10.31442092]
[1741698313478,10.37629398,122.84,122.81,0.06257658]
[1741698314186,10.37629398,122.84,122.77,33.14]
[1741698314382,4.0528,122.83,122.77,33.14]
[1741698314583,4.0528,122.83,122.77,41.2867]
[1741698314986,8.1447,122.81,122.77,33.14]
[1741698315184,4.0528,122.83,122.77,33.14]
[1741698315379,0.05611719,122.8,122.78,0.05167473]
[1741698316885,0.05611719,122.8,122.79,8.1454]
[1741698319491,0.05611719,122.8,122.78,0.05167473]
[1741698320086,0.05611719,122.8,122.78,8.19737473]
[1741698320584,0.05611719,122.8,122.79,8.1454]
[1741698321000,1.719e-05,122.8,122.79,8.1454]
[1741698322084,4.1189,122.86,122.84,8.1417]
[1741698323294,4.17235956,122.86,122.84,8.19609165]
[1741698323597,0.05345956,122.86,122.85,8.1414]
[1741698324289,8.19465956,122.86,122.84,0.05439165]
[1741698324689,8.1426,122.84,122.8,8.1441]
[1741698324891,8.1426,122.84,122.79,33.14]
[1741698325095,49.63742358,122.88,122.79,33.14]
[1741698325392,49.63742358,122.88,122.82,8.1433]
[1741698325588,33.14,122.88,122.82,8.1433]
[1741698325895,8.1414,122.85,122.84,0.0539515]
[1741698327194,0.0527411,122.86,122.79,33.14]
[1741698327495,8.1431,122.83,122.79,33.14]
[1741698327891,8.1431,122.83,122.8,8.1443]
[1741698328491,8.19609871,122.83,122.8,8.19974526]
[1741698329094,0.05299871,122.83,122.81,8.1437]
[1741698329295,0.05299871,122.83,122.8,0.05544526]
[1741698330094,0.05299871,122.83,122.82,8.1434]
[1741698330394,0.05299871,122.83,122.82,41.2834]
[1741698330594,9.871e-05,122.83,122.82,41.2834]
[1741698332698,10.9200184,122.92,122.82,52.07742358]
[1741698332898,10.9200184,122.92,122.86,16.49742358]
[1741698333088,10.9200184,122.92,122.87,33.14]
[1741698333290,124.26494498,122.93,122.87,33.14]
[1741698333291,3.9208,122.93,122.87,33.14]
[1741698333999,0.06158288,122.91,122.89,0.05747106]
[1741698334199,0.06158288,122.91,122.9,33.14]
[1741698334400,0.06158288,122.91,122.9,41.2781]
[1741698334800,0.06158288,122.91,122.9,33.14]
[1741698335800,8.288e-05,122.91,122.9,41.2781]
[1741698335994,43.70702809,122.96,122.9,49.63742358]
[1741698336195,43.70702809,122.96,122.92,16.49742358]
[1741698336394,43.70702809,122.96,122.93,33.14]
[1741698336591,3.8589,122.99,122.93,33.14]
[1741698336889,11.9911,122.99,122.93,33.14]
[1741698337199,0.06064078,122.97,122.95,0.05601702]
[1741698337393,0.06064078,122.97,122.96,33.14]
[1741698337997,0.06064078,122.97,122.96,41.2741]
[1741698340297,72.07392794,123.07,122.96,49.63742358]
[1741698340503,7.8639,123.05,122.96,53.40182358]
[1741698340904,8.1305,123.02,122.98,8.1324]
[1741698341095,8.1305,123.02,122.99,33.12]
[1741698341300,7.8639,123.05,122.99,33.12]
[1741698341502,0.05359542,123.02,122.99,41.30895845]
[1741698342806,8.18389542,123.02,122.99,41.30895845]
[1741698343405,0.05359542,123.02,123.0,8.1313]
[1741698343607,0.05359542,123.02,122.99,33.17685845]
[1741698344499,8.18419542,123.02,122.99,41.30855845]
[1741698345004,8.18379542,123.02,122.99,41.30845845]
[1741698345303,0.05359542,123.02,122.99,0.05685845]
[1741698345707,8.1312,123.01,122.99,0.05685845]
[1741698346902,8.18409542,123.02,122.99,33.15685845]
[1741698347108,0.05359542,123.02,122.99,33.15685845]
[1741698347902,8.1315,123.0,122.99,33.15685845]
[1741698348108,0.05359542,123.02,122.99,33.15685845]
[1741698348513,8.1312,123.01,122.99,33.15685845]
[1741698349102,8.1315,123.0,122.99,33.15685845]
[1741698349717,8.1312,123.01,122.99,33.15685845]
[1741698350312,8.1315,123.0,122.99,33.15685845]
[1741698351214,0.05359542,123.02,122.99,33.15685845]
[1741698351809,8.1312,123.01,122.99,33.15685845]
[1741698352610,0.05359542,123.02,122.99,33.15685845]
[1741698352810,8.1315,123.0,122.99,33.15685845]
[1741698354205,8.134,122.97,122.96,33.1]
[1741698355612,8.134,122.97,122.95,0.05825006]
[1741698355911,8.134,122.97,122.95,33.15825006]
[1741698356307,8.18959876,122.98,122.95,41.29305006]
[1741698356813,0.05639876,122.98,122.97,18.41375592]
[1741698357109,0.05639876,122.98,122.95,43.43850598]
[1741698357316,8.18959876,122.98,122.95,51.57300598]
[1741698357809,8.18959876,122.98,122.95,43.43850598]
[1741698358010,0.05639876,122.98,122.95,43.43850598]
[1741698358215,0.05639876,122.98,122.96,8.1338]
[1741698358913,0.05639876,122.98,122.97,8.1335]
[1741698360713,0.05639876,122.98,122.95,43.43850598]
[1741698360914,0.05639876,122.98,122.96,8.1338]
[1741698361521,8.18929876,122.98,122.96,8.1338]
[1741698361724,0.05639876,122.98,122.97,8.1335]
[1741698362221,3.8976,123.05,122.97,12.72025592]
[1741698362526,10.9200184,123.08,123.02,10.28025592]
[1741698362715,10.9200184,123.08,123.0,10.28025592]
[1741698362716,10.9200184,123.08,123.06,8.1272]
[1741698362921,10.9200184,123.08,123.06,33.1]
[1741698363321,10.97343474,123.08,123.06,41.28870234]
[1741698363927,10.97343474,123.08,123.07,8.1269]
[1741698364130,10.97343474,123.08,123.06,33.16150234]
[1741698364131,10.97343474,123.08,123.06,43.44175826]
[1741698364924,10.97343474,123.08,123.06,51.56905826]
[1741698365423,0.05341634,123.08,123.06,43.44175826]
[1741698366334,0.05341634,123.08,123.06,33.16150234]
[1741698370341,8.17991634,123.08,123.06,33.16150234]
[1741698370640,8.17991634,123.08,123.06,0.06150234]
[1741698370835,8.17991634,123.08,123.07,33.08]
[1741698371338,0.05341634,123.08,123.07,33.08]
[1741698371737,8.17961634,123.08,123.07,33.08]
[1741698372139,0.05341634,123.08,123.06,0.06150234]
[1741698372341,8.1269,123.07,123.06,0.06150234]
[1741698373241,8.18001634,123.08,123.06,0.06150234]
[1741698373641,0.05341634,123.08,123.06,0.06150234]
[1741698374345,8.1269,123.07,123.06,0.06150234]
[1741698375145,8.18001634,123.08,123.06,0.06150234]
[1741698375346,0.05341634,123.08,123.06,0.06150234]
[1741698375746,8.18021634,123.08,123.06,0.06150234]
[1741698376243,0.05341634,123.08,123.06,0.06150234]
[1741698376442,8.1269,123.07,123.06,0.06150234]
[1741698378043,0.05341634,123.08,122.98,17.30284289]
[1741698378243,3.9058,123.07,122.99,33.08]
[1741698378645,3.9058,123.07,123.01,8.1308]
[1741698378846,3.9058,123.07,123.02,33.08]
[1741698379247,0.06038542,123.06,123.03,0.05833453]
[1741698379943,8.1286,123.05,123.03,0.05833453]
[1741698380344,0.06038542,123.06,123.03,0.05833453]
[1741698380544,8.1289,123.04,123.03,0.05833453]
[1741698381545,0.06038542,123.06,123.03,0.05833453]
[1741698381742,8.1284,123.05,123.03,0.05833453]
[1741698381949,0.06038542,123.06,123.03,0.05833453]
[1741698382151,8.18838542,123.06,123.03,8.18753453]
[1741698382948,0.06038542,123.06,123.03,0.05833453]
[1741698383448,8.18798542,123.06,123.03,8.18753453]
[1741698384451,0.06038542,123.06,123.03,0.05833453]
[1741698384847,8.1286,123.05,123.03,0.05833453]
[1741698385447,8.1286,123.05,123.03,8.18783453]
[1741698385942,0.06038542,123.06,123.05,8.1282]
[1741698386348,0.06038542,123.06,123.03,0.05833453]
[1741698387152,0.06038542,123.06,123.05,8.1282]
[1741698387349,0.06038542,123.06,123.05,41.2082]
[1741698389052,0.06038542,123.06,123.05,33.08]
[1741698389553,0.06038542,123.06,123.05,41.2082]
[1741698391649,0.06038542,123.06,123.05,33.08]
[1741698392958,8.1289,123.04,123.03,0.05833453]
[1741698393657,8.131,123.01,122.98,33.08]
[1741698393856,7.3219,123.05,122.98,43.34994576]
[1741698394654,0.05507456,123.03,123.0,0.05158237]
[1741698394855,0.05507456,123.03,123.01,33.08]
[1741698395256,0.05507456,123.03,123.02,8.1302]
[1741698396459,0.05507456,123.03,123.01,41.2105]
[1741698396760,0.05507456,123.03,123.01,33.08]
[1741698396958,0.05507456,123.03,123.0,0.05158237]
[1741698397351,3.80387456,123.03,123.0,0.05158237]
[1741698397558,11.93357456,123.03,123.0,8.18278237]
[1741698397757,3.80387456,123.03,123.0,0.05158237]
[1741698398556,8.1302,123.02,123.0,0.05158237]
[1741698399155,8.1308,123.01,123.0,0.05158237]
[1741698399963,3.80387456,123.03,122.91,599.7853071]
[1741698399964,33.08,123.02,122.94,10.26994576]
[1741698400262,10.26994576,123.01,122.94,33.08]
[1741698400458,33.08,123.02,122.93,33.08]
[1741698400654,33.08,123.02,122.94,10.26994576]
[1741698400854,8.1318,123.0,122.97,8.1335]
[1741698401059,0.05385342,122.99,122.97,0.05599699]
[1741698401455,8.1328,122.98,122.97,0.05599699]
[1741698401860,3.6805,122.98,122.91,33.08]
[1741698402059,3.6805,122.98,122.92,8.1364]
[1741698402460,8.1338,122.97,122.94,8.1351]
[1741698402665,3.6805,122.98,122.92,43.34994576]
[1741698403161,0.0514126,122.97,122.92,43.34994576]
[1741698403562,8.1849126,122.97,122.94,8.135]
[1741698403959,0.0514126,122.97,122.92,43.34994576]
[1741698404465,8.1345,122.96,122.93,8.136]
[1741698404663,0.0514126,122.97,122.9,10.26994576]
[1741698404857,3.7586126,122.97,122.86,3.6398]
[1741698405059,3.7586126,122.97,122.86,33.08]
[1741698405060,10.26994576,122.94,122.86,33.08]
[1741698405255,10.26994576,122.92,122.85,33.08]
[1741698405461,8.1378,122.91,122.87,8.1397]
[1741698405663,43.34994576,122.96,122.88,33.08]
[1741698405860,0.05846971,122.9,122.88,43.34994576]
[1741698406060,43.34994576,122.96,122.88,33.08]
[1741698406369,0.05368629,122.9,122.88,33.08]
[1741698406566,8.1371,122.92,122.88,41.2191]
[1741698406871,0.05532514,122.9,122.88,33.08]
[1741698407068,0.05532514,122.9,122.89,8.1384]
[1741698407266,3.7962,122.95,122.88,33.08]
[1741698407462,0.05354148,122.91,122.88,33.08]
[1741698408068,0.05354148,122.91,122.89,8.1384]
[1741698408261,0.05354148,122.91,122.88,33.08]
[1741698409465,0.05354148,122.91,122.88,49.55151509]
[1741698410865,0.05354148,122.91,122.88,33.08]
[1741698411361,0.05354148,122.91,122.88,49.55151509]
[1741698411864,4.148e-05,122.91,122.88,49.55151509]
[1741698412070,4.148e-05,122.91,122.9,16.47151509]
[1741698412265,4.148e-05,122.91,122.9,24.60961509]
[1741698416071,15.5,122.97,122.94,8.135]
[1741698416472,15.5,122.97,122.93,33.1]
[1741698416673,15.5,122.97,122.94,8.1351]
[1741698416975,8.1342,122.96,122.93,33.1]
[1741698417276,8.1342,122.96,122.94,0.05306057]
[1741698417877,8.1348,122.95,122.94,0.05306057]
[1741698418077,7.41799817,122.97,122.94,8.18846057]
[1741698418779,8.1345,122.96,122.94,8.18846057]
[1741698418972,7.41799817,122.97,122.94,0.05306057]
[1741698419376,8.1348,122.95,122.94,0.05306057]
[1741698420379,7.41799817,122.97,122.94,0.05306057]
[1741698420971,8.1348,122.95,122.94,0.05306057]
[1741698421171,7.41799817,122.97,122.89,3.469]
[1741698421476,7.3662,122.97,122.9,33.1]
[1741698421676,8.1365,122.93,122.9,33.1]
[1741698421877,7.3662,122.97,122.9,33.1]
[1741698422074,3.659,122.97,122.9,49.57151509]
[1741698422280,0.05336689,122.95,122.9,49.57151509]
[1741698422784,8.18846689,122.95,122.92,8.1364]
[1741698422984,8.18846689,122.95,122.93,33.1]
[1741698423189,8.1355,122.94,122.93,33.1]
[1741698423389,0.05336689,122.95,122.89,3.469]
[1741698423589,0.05336689,122.95,122.88,33.1]
[1741698423782,8.1372,122.92,122.89,8.1383]
[1741698423981,3.659,122.97,122.73,258.10924338]
[1741698423982,194.0,122.96,122.76,207.2935]
[1741698424183,16.47151509,122.9,122.81,33.1]
[1741698424385,16.47151509,122.88,122.77,3.7804]
[1741698424586,16.47151509,122.86,122.75,33.1]
[1741698424789,8.1448,122.8,122.75,41.2478]
[1741698424979,0.06125146,122.82,122.73,3.7804]
[1741698425184,36.7214,122.82,122.73,36.8804]
[1741698425381,0.06233662,122.79,122.74,16.47151509]
[1741698425889,0.06233662,122.79,122.76,8.1469]
[1741698426089,0.06233662,122.79,122.77,33.1]
[1741698427385,3.7771,122.84,122.77,33.1]
[1741698427789,3.7771,122.84,122.79,8.1448]
[1741698428487,3.7771,122.84,122.64,16.3095]
[1741698428488,16.47151509,122.82,122.64,16.3095]
[1741698428686,16.47151509,122.82,122.7,34.24]
[1741698429091,16.47151509,122.82,122.71,16.47151509]
[1741698429292,34.2,122.83,122.71,16.47151509]
[1741698429591,34.2,122.83,122.73,16.47151509]
[1741698429794,34.2,122.83,122.74,34.32]
[1741698429984,8.1447,122.81,122.76,8.147]
[1741698430186,0.05468249,122.79,122.76,8.147]
[1741698430387,0.05468249,122.79,122.74,34.32]
[1741698430583,0.05468249,122.79,122.76,8.1469]
[1741698430886,0.05468249,122.79,122.77,34.28]
[1741698431293,38.0971,122.84,122.79,8.1454]
[1741698431599,0.05970205,122.83,122.8,34.3]
[1741698431786,0.05970205,122.83,122.8,42.4442]
[1741698432691,0.05970205,122.83,122.8,34.3]
[1741698433597,0.05970205,122.83,122.81,8.1436]
[1741698434086,0.05970205,122.83,122.8,34.3]
[1741698434289,0.05970205,122.83,122.82,8.1434]
[1741698435598,0.05970205,122.83,122.81,8.1438]
[1741698436495,0.05970205,122.83,122.8,34.3]
[1741698437101,0.05970205,122.83,122.74,16.47151509]
[1741698437292,16.47151509,122.84,122.77,8.1462]
[1741698437491,16.47151509,122.84,122.72,3.441]
[1741698437492,8.19965536,122.8,122.72,3.441]
[1741698437698,3.7763,122.83,122.73,34.16]
[1741698437891,0.05250548,122.77,122.73,34.16]
[1741698438905,0.05250548,122.77,122.75,8.1477]
[1741698439110,0.05250548,122.77,122.69,16.47151509]
[1741698439306,8.1485,122.75,122.7,34.14]
[1741698439606,0.05423434,122.72,122.71,34.14]
[1741698439903,8.1484,122.75,122.71,42.3103]
[1741698440100,0.0523697,122.73,122.71,34.16]
[1741698440702,0.0523697,122.73,122.72,8.15]
[1741698440900,0.0523697,122.73,122.71,34.16]
[1741698441298,0.0523697,122.73,122.71,42.3103]
[1741698442005,0.0523697,122.73,122.72,8.15]
[1741698442404,0.0523697,122.73,122.72,42.25]
[1741698442702,20.0,122.72,122.56,34.46]
[1741698442899,16.47151509,122.7,122.59,3.7145]
[1741698443099,3.5884,122.71,122.63,8.1555]
[1741698443408,3.5884,122.71,122.64,34.46]
[1741698443604,16.47151509,122.7,122.64,34.46]
[1741698443905,50.89151509,122.7,122.6,3.4713]
[1741698444107,8.1551,122.65,122.59,3.7145]
[1741698444303,50.89151509,122.7,122.6,8.1579]
[1741698444605,0.05278206,122.63,122.61,0.06126969]
[1741698444795,34.44,122.67,122.59,38.1145]
[1741698444998,0.05838526,122.63,122.61,0.06197517]
[1741698445503,0.05838526,122.63,122.52,16.47151509]
[1741698445697,20.24450035,122.63,122.52,50.89151509]
[1741698445905,3.7146,122.63,122.56,8.1606]
[1741698446102,3.7146,122.63,122.56,42.6006]
[1741698446301,3.7146,122.63,122.56,34.44]
[1741698446503,20.18611509,122.63,122.56,34.44]
[1741698446707,8.1569,122.62,122.56,34.44]
[1741698446915,0.05787303,122.61,122.52,16.47151509]
[1741698447302,51.15151509,122.6,122.49,38.4011]
[1741698447509,0.05641612,122.58,122.5,16.47151509]
[1741698447802,0.05641612,122.58,122.56,0.36114]
[1741698448709,0.05641612,122.58,122.49,34.7]
[1741698448903,34.68,122.6,122.5,16.47151509]
[1741698449109,0.05566694,122.55,122.5,16.47151509]
[1741698449501,0.05566694,122.55,122.47,9.2266]
[1741698449502,0.05566694,122.55,122.51,34.7]
[1741698449699,285.41151509,122.67,122.53,16.47151509]
[1741698449896,3.4381,122.65,122.54,38.3205]
[1741698450102,38.0691,122.68,122.6,8.1574]
[1741698450298,3.3891,122.68,122.61,34.64]
[1741698450813,0.06106227,122.66,122.63,0.0609795]
[1741698451208,8.21526227,122.66,122.63,0.0609795]
[1741698451709,0.06106227,122.66,122.63,0.0609795]
[1741698451907,8.21536227,122.66,122.63,0.0609795]
[1741698452104,26.94476774,122.66,122.63,0.0609795]
[1741698452411,26.94476774,122.66,122.56,34.56]
[1741698452611,26.88370547,122.66,122.56,34.56]
[1741698452910,8.1565,122.63,122.57,8.16]
[1741698453112,26.88370547,122.66,122.56,34.56]
[1741698453306,0.05670598,122.61,122.56,34.56]
[1741698453512,0.05670598,122.61,122.56,34.5]
[1741698454006,8.1587,122.59,122.55,34.5]
[1741698454210,3.4427,122.63,122.55,34.5]
[1741698454401,0.05796877,122.58,122.55,34.5]
[1741698454603,0.05796877,122.58,122.57,8.1596]
[1741698456812,0.05796877,122.58,122.55,34.5]
[1741698457411,3.4427,122.63,122.56,26.88370547]
[1741698457612,311.6752,122.65,122.56,26.88370547]
[1741698457613,303.52,122.65,122.56,26.88370547]
[1741698457814,3.4029,122.67,122.58,26.88370547]
[1741698458013,3.4029,122.67,122.59,34.48]
[1741698458311,3.4029,122.67,122.6,34.48]
[1741698458512,0.06248895,122.64,122.62,0.05714648]
[1741698458913,8.1577,122.61,122.56,34.44]
[1741698459112,34.42,122.63,122.56,34.44]
[1741698459310,37.824,122.63,122.56,34.44]
[1741698459510,37.824,122.63,122.54,3.6405]
[1741698459711,37.824,122.63,122.55,34.46]
[1741698460008,0.06225563,122.6,122.55,34.46]
[1741698460609,0.06225563,122.6,122.48,16.3314]
[1741698460812,26.88370547,122.6,122.52,34.42]
[1741698461013,0.05466468,122.57,122.52,34.42]
[1741698461316,0.05466468,122.57,122.52,34.48]
[1741698461708,8.21486468,122.57,122.52,42.643]
[1741698462017,0.05466468,122.57,122.52,34.48]
[1741698462417,0.05466468,122.57,122.53,8.1621]
[1741698462717,0.05466468,122.57,122.52,34.48]
[1741698463311,0.05466468,122.57,122.5,3.6491]
[1741698463512,0.05466468,122.57,122.51,42.6036]
[1741698463716,0.05466468,122.57,122.51,34.44]
[1741698464218,0.05466468,122.57,122.52,26.88370547]
[1741698464610,0.05466468,122.57,122.56,8.1607]
[1741698464815,0.05466468,122.57,122.55,34.42]
[1741698465718,0.05466468,122.57,122.56,8.1607]
[1741698469414,0.05466468,122.57,122.55,34.42]
[1741698469619,0.05466468,122.57,122.52,26.88370547]
[1741698469822,0.05466468,122.57,122.53,34.28]
[1741698470014,0.05466468,122.57,122.55,8.1609]
[1741698470628,0.05466468,122.57,122.53,37.9622]
[1741698470922,0.05466468,122.57,122.56,8.1607]
[1741698471115,0.05466468,122.57,122.56,34.28]
[1741698472123,0.05466468,122.57,122.56,42.4407]
[1741698473618,0.05466468,122.57,122.56,34.28]
[1741698474521,0.05466468,122.57,122.56,6.96137919]
[1741698474922,0.05466468,122.57,122.56,15.12207919]
[1741698478921,0.05466468,122.57,122.56,6.96137919]
[1741698479127,0.05466468,122.57,122.53,34.34]
[1741698479426,0.05466468,122.57,122.52,8.163]
[1741698480123,35.19466468,122.57,122.5,3.6491]
[1741698480427,35.19466468,122.57,122.48,41.1047]
[1741698480623,42.32846468,122.57,122.48,5.9647]
[1741698480824,8.164,122.51,122.49,43.3051]
[1741698481123,42.2738,122.57,122.49,35.14]
[1741698481329,0.06254199,122.51,122.5,8.1646]
[1741698481523,0.06077027,122.52,122.5,8.1646]
[1741698481726,42.2738,122.57,122.49,35.14]
[1741698481925,0.05213123,122.52,122.49,35.14]
[1741698482634,0.05213123,122.52,122.5,8.1641]
[1741698483026,0.05213123,122.52,122.47,3.3512]
[1741698483729,0.05213123,122.52,122.48,16.56119167]
[1741698483927,24.84789782,122.56,122.5,16.56119167]
[1741698484630,33.00859782,122.56,122.52,8.163]
[1741698484830,33.00859782,122.56,122.52,34.98]
[1741698484831,71.44801253,122.56,122.52,34.98]
[1741698485228,0.0613818,122.55,122.53,0.05379107]
[1741698485625,0.0613818,122.55,122.54,8.162]
[1741698486129,0.0613818,122.55,122.53,0.05379107]
[1741698486930,0.0613818,122.55,122.54,8.162]
[1741698487131,0.0613818,122.55,122.53,0.05379107]
[1741698487328,0.0613818,122.55,122.53,8.21619107]
[1741698487633,0.0613818,122.55,122.53,0.05379107]
[1741698488236,8.162,122.54,122.53,0.05379107]
[1741698488436,0.0613818,122.55,122.53,0.05379107]
[1741698489532,0.0613818,122.55,122.49,35.0]
[1741698490035,0.0613818,122.55,122.47,35.4]
[1741698490337,51.86119167,122.56,122.48,35.52]
[1741698490534,8.1637,122.52,122.49,8.1652]
[1741698491039,0.0539523,122.53,122.48,35.52]
[1741698491834,0.0539523,122.53,122.48,39.0494]
[1741698492939,8.1647,122.5,122.48,35.52]
[1741698493338,16.56119167,122.52,122.41,141.17696107]
[1741698493543,16.56119167,122.48,122.36,207.56119167]
[1741698493742,35.66,122.47,122.36,52.24119167]
[1741698493944,35.66,122.47,122.38,16.56119167]
[1741698494139,0.06209349,122.43,122.34,134.10924338]
[1741698494344,0.06209349,122.43,122.37,16.56119167]
[1741698494541,16.56119167,122.48,122.37,16.56119167]
[1741698494542,16.56119167,122.48,122.38,36.02]
[1741698494746,16.56119167,122.48,122.39,3.6229]
[1741698494747,0.05178014,122.4,122.39,3.6229]
[1741698494947,0.06188969,122.41,122.39,3.6229]
[1741698495141,39.6063,122.49,122.39,3.6229]
[1741698495142,8.1676,122.46,122.39,3.6229]
[1741698495338,0.05304501,122.41,122.39,23.54029167]
[1741698495537,8.1691,122.44,122.39,6.9791]
[1741698495741,16.56119167,122.47,122.39,43.0591]
[1741698496149,39.6063,122.49,122.4,8.1709]
[1741698496150,8.1681,122.45,122.4,8.1709]
[1741698496348,56.16749167,122.49,122.39,43.0591]
[1741698496844,0.06050364,122.45,122.43,0.06133382]
[1741698497237,8.1687,122.44,122.43,0.06133382]
[1741698498150,0.06050364,122.45,122.38,36.22]
[1741698498351,52.76119167,122.45,122.35,23.59449167]
[1741698498650,16.56119167,122.43,122.34,36.2]
[1741698499147,3.453,122.45,122.37,16.56119167]
[1741698499455,0.05863977,122.4,122.38,39.7656]
[1741698499748,3.5657,122.5,122.38,56.32679167]
[1741698499944,3.5657,122.5,122.41,16.56119167]
[1741698500144,0.06037132,122.45,122.42,36.44]
[1741698500340,0.06037132,122.45,122.44,8.1687]
[1741698500551,0.06037132,122.45,122.42,36.44]
[1741698501446,0.06037132,122.45,122.38,3.4656]
[1741698501647,0.06037132,122.45,122.38,40.2456]
[1741698502658,8.1692,122.44,122.39,8.1716]
[1741698502850,8.1692,122.44,122.38,40.2456]
[1741698502851,0.06037132,122.45,122.38,40.2456]
[1741698503155,43.7146,122.47,122.35,20.12889167]
[1741698503358,16.56119167,122.39,122.26,53.92119167]
[1741698503558,16.56119167,122.37,122.27,3.73590172]
[1741698503859,0.05164314,122.34,122.27,39.6683]
[1741698504054,0.05164314,122.34,122.27,2.2683]
[1741698504260,8.1768,122.32,122.27,37.52]
[1741698504556,54.22119167,122.35,122.26,3.5182]
[1741698504753,8.1772,122.32,122.25,172.12924338]
[1741698505053,0.06276449,122.31,122.25,188.69043505]
[1741698505254,0.06276449,122.31,122.27,16.56119167]
[1741698505454,10.3678,122.38,122.29,16.56119167]
[1741698505649,10.3678,122.38,122.3,38.3]
[1741698506557,0.05223115,122.35,122.33,0.06068997]
[1741698507560,27.06857266,122.35,122.26,196.8182]
[1741698507762,27.06857266,122.35,122.24,41.28]
[1741698508059,27.01634151,122.35,122.24,41.28]
[1741698508261,8.1773,122.32,122.25,8.1809]
[1741698508562,65.53634151,122.37,122.25,3.6834]